[Event "EWIRCC 2019"]
[Site "Monte-Carlo"]
[Date "2019.12.01"]
[Round "11.18"]
[White "Bulmaga, Irina"]
[Black "Janzelj, Lara"]
[Result "1-0"]
[ECO "D05"]
[WhiteElo "2435"]
[BlackElo "2158"]
[Annotator "ChessBase"]
[PlyCount "98"]
[EventDate "2019.11.28"]
[EventType "swiss"]
[EventCountry "MNC"]
[SourceTitle "playchess.com"]
[Source "ChessBase"]
[SourceQuality "1"]
[TimeControl "5400+30"]

1. d4 {[%emt 1:15:12]} d5 {[%emt 1:15:11]} 2. Nf3 {[%emt 0:00:22]} Nf6 {[%emt 0:00:21]} 3. e3 {[%emt 0:00:21]} e6 {[%emt 0:00:34]} 4. Bd3 {[%emt 0:00:23]} Bd6 {[%emt 0:00:22]} 5. b3 {[%emt 0:00:24]} O-O {[%emt 0:00:23]} 6. Bb2 {[%emt 0:00:22]} Nbd7 {[%emt 0:00:35]} 7. Ne5 {[%emt 0:00:27]} c5 {[%emt 0:00:30]} 8. Nd2 {[%emt 0:00:39]} Qe7 {[%emt 0:00:59]} 9. O-O {[%emt 0:00:34]} b6 {[%emt 0:01:26]} 10. f4 {[%emt 0:00:30]} Bb7 {[%emt 0:00:24]} 11. Qf3 {[%emt 0:00:29]} cxd4 {[%emt 0:00:58]} 12. exd4 {[%emt 0:00:25]} Rfc8 {[%emt 0:00:34]} 13. Rae1 {[%emt 0:00:29]} a5 {[%emt 0:00:50]} 14. f5 {[%emt 0:00:35]} Nf8 {[%emt 0:00:25]} 15. Qh3 {[%emt 0:00:39]} Ne4 {[%emt 0:00:47]} 16. Nxe4 {[%emt 0:01:47]} dxe4 {[%emt 0:00:26]} 17. Bxe4 {[%emt 0:00:32]} Bxe4 {[%emt 0:00:22]} 18. Rxe4 {[%emt 0:00:23]} Rxc2 {[%emt 0:00:56]} 19. f6 {[%emt 0:02:46]} gxf6 {[%emt 0:01:43]} 20. Ng4 {[%emt 0:00:24]} f5 {[%emt 0:01:31]} 21. Nh6+ {[%emt 0:00:34]} Kh8 {[%emt 0:00:30]} 22. Nxf5 {[%emt 0:00:37]} Qc7 {[%emt 0:00:55]} 23. Nxd6 {[%emt 0:01:36]} Qxd6 {[%emt 0:00:23]} 24. d5+ {[%emt 0:01:05]} Kg8 {[%emt 0:00:45]} 25. Be5 {[%emt 0:01:56]} Qc5+ {[%emt 0:00:47]} 26. Bd4 {[%emt 0:00:26]} Qxd5 {[%emt 0:00:28]} 27. Qf3 {[%emt 0:02:49]} f5 {[%emt 0:02:28]} 28. Rg4+ {[%emt 0:00:24]} Ng6 {[%emt 0:00:33]} 29. Qxd5 {[%emt 0:00:52]} exd5 {[%emt 0:00:21]} 30. Rxf5 {[%emt 0:00:23]} Re8 {[%emt 0:00:29]} 31. h4 {[%emt 0:00:53]} Re4 {[%emt 0:00:51]} 32. Rxe4 {[%emt 0:01:39]} dxe4 {[%emt 0:00:21]} 33. h5 {[%emt 0:00:28]} Rxg2+ {[%emt 0:02:41]} 34. Kxg2 {[%emt 0:00:22]} Nh4+ {[%emt 0:00:21]} 35. Kf2 {[%emt 0:00:23]} Nxf5 {[%emt 0:00:21]} 36. Bxb6 {[%emt 0:00:21]} Kf7 {[%emt 0:00:48]} 37. Bxa5 {[%emt 0:00:26]} Ke6 {[%emt 0:00:24]} 38. Bb6 {[%emt 0:00:44]} Kd5 {[%emt 0:00:46]} 39. a4 {[%emt 0:00:23]} Kc6 {[%emt 0:00:42]} 40. Be3 {[%emt 0:00:22]} Ng7 {[%emt 0:00:31]} 41. h6 {[%emt 0:00:33]} Nf5 {[%emt 0:00:21]} 42. b4 {[%emt 0:00:25]} Kb7 {[%emt 0:00:37]} 43. b5 {[%emt 0:00:28]} Nd6 {[%emt 0:00:31]} 44. Bc5 {[%emt 0:00:41]} Nf5 {[%emt 0:01:27]} 45. a5 {[%emt 0:01:02]} Nxh6 {[%emt 0:00:35]} 46. a6+ {[%emt 0:00:21]} Kc7 {[%emt 0:00:31]} 47. b6+ {[%emt 0:00:27]} Kc6 {[%emt 0:00:24]} 48. b7 {[%emt 0:00:27]} Ng4+ {[%emt 0:00:26]} 49. Ke2 {[%emt 0:00:24]} Kd5 {[%emt 0:04:56]} 1-0

[Event "EWIRCC 2019"]
[Site "Monte-Carlo"]
[Date "2019.12.01"]
[Round "11.19"]
[White "Zakurdjaeva, Irina"]
[Black "Guichard, Pauline"]
[Result "0-1"]
[ECO "C60"]
[WhiteElo "2235"]
[BlackElo "2407"]
[Annotator "ChessBase"]
[PlyCount "82"]
[EventDate "2019.11.28"]
[EventType "swiss"]
[EventCountry "MNC"]
[SourceTitle "playchess.com"]
[Source "ChessBase"]
[SourceQuality "1"]
[TimeControl "5400+30"]

1. e4 {[%emt 1:15:13]} e5 {[%emt 1:15:11]} 2. Nf3 {[%emt 0:00:23]} Nc6 {[%emt 0:00:22]} 3. Bb5 {[%emt 0:00:31]} g6 {[%emt 0:00:23]} 4. O-O {[%emt 0:02:39]} Bg7 {[%emt 0:00:25]} 5. c3 {[%emt 0:00:22]} a6 {[%emt 0:00:29]} 6. Ba4 {[%emt 0:00:27]} b5 {[%emt 0:00:41]} 7. Bb3 {[%emt 0:00:29]} Nge7 {[%emt 0:01:38]} 8. d4 {[%emt 0:02:18]} exd4 {[%emt 0:00:23]} 9. cxd4 {[%emt 0:00:33]} d6 {[%emt 0:00:28]} 10. Nc3 {[%emt 0:02:17]} O-O {[%emt 0:00:26]} 11. Re1 {[%emt 0:02:36]} Bg4 {[%emt 0:00:57]} 12. Be3 {[%emt 0:01:08]} Bxf3 {[%emt 0:00:38]} 13. gxf3 {[%emt 0:00:31]} Qd7 {[%emt 0:00:44]} 14. Kg2 {[%emt 0:00:44]} Na5 {[%emt 0:00:45]} 15. Rc1 {[%emt 0:00:49]} Rfd8 {[%emt 0:01:56]} 16. Bg5 {[%emt 0:02:11]} h6 {[%emt 0:00:47]} 17. Bxe7 {[%emt 0:01:35]} Qxe7 {[%emt 0:00:23]} 18. Nd5 {[%emt 0:00:21]} Qg5+ {[%emt 0:00:22]} 19. Kh1 {[%emt 0:00:26]} c6 {[%emt 0:00:24]} 20. Rg1 {[%emt 0:00:50]} Qh4 {[%emt 0:01:23]} 21. Rg4 {[%emt 0:00:24]} Qxf2 {[%emt 0:00:30]} 22. Ne7+ {[%emt 0:00:24]} Kf8 {[%emt 0:01:34]} 23. Nxc6 {[%emt 0:00:47]} Nxc6 {[%emt 0:05:56]} 24. Rxc6 {[%emt 0:00:22]} Rac8 {[%emt 0:00:28]} 25. Rg2 {[%emt 0:02:18]} Qxd4 {[%emt 0:00:29]} 26. Rd2 {[%emt 0:00:44]} Qe5 {[%emt 0:03:06]} 27. Rdxd6 {[%emt 0:00:32]} Bf6 {[%emt 0:00:37]} 28. Rxc8 {[%emt 0:01:23]} Rxc8 {[%emt 0:00:22]} 29. Rd7 {[%emt 0:00:27]} Be7 {[%emt 0:00:22]} 30. Qd2 {[%emt 0:00:48]} g5 {[%emt 0:01:19]} 31. Kg2 {[%emt 0:00:33]} a5 {[%emt 0:01:05]} 32. Bd5 {[%emt 0:00:38]} Rd8 {[%emt 0:00:50]} 33. Rxd8+ {[%emt 0:00:25]} Bxd8 {[%emt 0:00:21]} 34. a3 {[%emt 0:00:32]} Bc7 {[%emt 0:00:25]} 35. Kh1 {[%emt 0:00:28]} b4 {[%emt 0:00:34]} 36. axb4 {[%emt 0:00:24]} axb4 {[%emt 0:00:21]} 37. Qxb4+ {[%emt 0:00:25]} Bd6 {[%emt 0:00:30]} 38. Qd2 {[%emt 0:00:22]} h5 {[%emt 0:00:58]} 39. b4 {[%emt 0:00:53]} h4 {[%emt 0:00:35]} 40. Qa2 {[%emt 0:00:33]} h3 {[%emt 0:00:40]} 41. Bxf7 {[%emt 0:00:30]} Qc3 {[%emt 0:00:27]} 0-1